bitfinex/quotes_ETHUSD_20241120
["timestamp","ask_amount","ask_price","bid_price","bid_amount"]
[1732071793993,0.08120046,3079.0,3078.2,0.8095]
[1732071794175,0.55,3079.1,3078.2,0.8095]
[1732071795154,0.55,3079.1,3078.3,0.05425446]
[1732071795319,0.55,3079.1,3078.4,0.8319]
[1732071795491,0.55,3079.1,3078.2,0.01]
[1732071795492,0.55,3079.1,3078.6,0.8319]
[1732071795654,0.08119232,3079.8,3078.6,0.8319]
[1732071795975,0.8303,3080.4,3078.7,0.8319]
[1732071796175,0.08118651,3080.3,3078.7,0.8319]
[1732071796974,0.55,3080.2,3078.7,0.8319]
[1732071797179,0.55,3080.0,3078.7,0.8319]
[1732071797364,0.55,3079.8,3078.8,1.07252537]
[1732071797558,0.55,3079.8,3078.9,1.07252537]
[1732071797756,0.55,3079.8,3078.0,0.09715846]
[1732071797757,0.91148549,3080.9,3079.1,0.8319]
[1732071797957,0.91148549,3080.9,3079.2,0.24062537]
[1732071798161,0.91148549,3080.9,3079.0,0.0542185]
[1732071798162,0.91148549,3080.9,3079.3,1.07252537]
[1732071798410,0.08116709,3080.8,3079.5,0.8319]
[1732071798602,0.08116709,3080.8,3079.6,1.07252537]
[1732071798764,0.8303,3081.2,3079.7,1.07252537]
[1732071798958,0.08116127,3081.2,3079.8,1.12673616]
[1732071799184,0.9114547,3081.5,3079.9,0.8319]
[1732071799427,0.9114547,3081.5,3080.1,0.8319]
[1732071799428,0.0811547,3081.5,3080.1,0.8319]
[1732071799765,0.0811547,3081.5,3080.0,0.29474511]
[1732071799766,0.0811547,3081.5,3080.3,0.8319]
[1732071799960,0.8303,3081.9,3080.4,1.07250807]
[1732071799961,0.08114885,3081.8,3080.4,1.07250807]
[1732071800205,0.08114885,3081.8,3080.4,0.8319]
[1732071800612,0.55,3082.2,3080.6,0.8319]
[1732071800613,0.08113785,3082.1,3080.6,0.8319]
[1732071800820,0.08113785,3082.1,3080.7,1.1265525]
[1732071801124,0.08113785,3082.1,3080.8,1.07245667]
[1732071801272,0.08113238,3082.3,3080.9,1.12653671]
[1732071801469,0.08112707,3082.7,3081.0,1.07245667]
[1732071801689,0.08112707,3082.7,3081.1,1.12651151]
[1732071801907,0.08112707,3082.7,3081.3,0.8319]
[1732071802061,0.08112707,3082.7,3081.4,0.24055667]
[1732071802399,0.08111472,3082.6,3081.5,1.07196662]
[1732071802637,0.08111472,3082.6,3081.5,0.8319]
[1732071802824,0.08111307,3082.8,3081.5,0.8319]
[1732071802969,0.08111307,3082.8,3081.6,0.2400637]
[1732071803310,0.08111307,3082.8,3081.8,0.8319]
[1732071803676,0.8303,3083.2,3081.8,0.8319]
[1732071803677,0.08111306,3083.1,3081.8,0.8319]
[1732071803778,0.24717306,3083.1,3081.8,0.8319]
[1732071804622,1.07747306,3083.1,3081.8,0.8319]
[1732071805471,0.55,3083.0,3081.8,0.8319]
[1732071805665,0.55,3082.8,3081.8,0.8319]
[1732071805998,0.55,3082.6,3081.4,0.7939]
[1732071806166,0.55,3082.4,3081.4,0.7939]
[1732071806369,0.55,3082.2,3081.4,0.7939]
[1732071806678,0.55,3082.0,3081.4,0.7939]
[1732071808264,0.08111618,3082.8,3081.5,0.05405213]
[1732071808563,0.99636,3083.1,3081.6,0.7708]
[1732071808564,0.55,3082.7,3081.6,0.7708]
[1732071808764,0.55,3082.9,3081.8,0.7708]
[1732071809616,0.08110749,3082.8,3081.8,0.7708]
[1732071809958,0.55,3082.7,3081.8,0.7708]
[1732071810567,0.55,3082.5,3081.8,0.7708]
[1732071810934,0.55,3082.3,3081.8,0.7708]
[1732071812388,0.55,3082.1,3081.4,0.7708]
[1732071812583,0.55,3081.9,3081.4,0.7708]
[1732071813007,0.55,3082.2,3081.4,0.7708]
[1732071813112,0.55,3082.0,3081.4,0.7708]
[1732071814071,0.63113044,3082.0,3081.4,0.7708]
[1732071814318,0.55,3082.0,3081.4,0.7708]
[1732071814533,0.55,3082.2,3081.4,0.7708]
[1732071814711,0.55,3082.0,3081.4,0.7708]
[1732071815020,0.55,3081.8,3081.4,0.7708]
[1732071815188,0.55,3081.6,3081.4,0.7708]
[1732071815397,0.55,3081.6,3080.4,0.06408348]
[1732071815398,0.55,3081.6,3081.0,0.7708]
[1732071815903,3.0,3082.1,3079.8,3.0]
[1732071815904,0.55,3081.4,3080.7,0.7708]
[1732071816075,0.55,3081.2,3080.7,0.7708]
[1732071816401,0.55,3081.0,3080.3,0.7708]
[1732071816602,0.55,3080.8,3080.3,0.7708]
[1732071816911,0.08115501,3080.7,3080.3,0.7708]
[1732071817115,0.55,3080.6,3080.3,0.7708]
[1732071817327,0.55,3080.4,3079.9,0.7708]
[1732071817628,0.55,3080.2,3079.1,0.7708]
[1732071818453,0.55,3080.2,3079.2,0.82500148]
[1732071818714,0.55,3080.0,3079.2,0.7708]
[1732071819343,3.63550692,3082.2,3079.2,0.7708]
[1732071819344,0.55,3079.8,3079.2,0.7708]
[1732071819541,0.55,3079.6,3079.2,0.7708]
[1732071819735,0.54513311,3079.6,3079.2,0.7708]
[1732071820032,0.08118573,3080.0,3078.8,0.8078]
[1732071820196,0.4651443,3080.0,3078.8,0.8078]
[1732071821405,0.08118573,3080.0,3078.8,0.8078]
[1732071821690,0.55,3079.9,3078.8,0.8078]
[1732071821894,0.55,3079.7,3078.8,0.8078]
[1732071822131,0.55,3079.5,3078.5,0.8078]
[1732071822642,0.55,3079.3,3077.8,0.8078]
[1732071822934,0.08120508,3079.2,3077.8,0.8078]
[1732071823108,0.55,3079.1,3077.8,0.8078]
[1732071823310,0.55,3079.1,3077.9,0.16505178]
[1732071823497,0.55,3079.1,3078.0,0.86206421]
[1732071823694,0.55,3079.3,3078.0,0.86206421]
[1732071824456,0.55,3079.6,3078.0,0.86206421]
[1732071824601,0.0811953,3079.7,3078.0,0.86206421]
[1732071824602,0.08118559,3080.1,3078.2,0.8078]
[1732071824947,0.08118559,3080.1,3078.1,0.24997112]
[1732071824948,0.08118559,3080.1,3078.4,0.8078]
[1732071825096,0.08118559,3080.1,3078.5,0.23997112]
[1732071825291,0.08118559,3080.1,3078.5,0.05422883]
[1732071825526,0.08118559,3080.1,3078.4,0.8078]
[1732071825711,0.08118559,3080.1,3078.5,0.05422882]
[1732071825712,0.55,3080.0,3078.5,0.05422882]
[1732071825926,0.55,3079.8,3078.5,0.05422882]
[1732071826939,0.08118978,3079.9,3078.5,0.05422882]
[1732071827149,0.55,3079.8,3078.6,0.8078]
[1732071827456,0.55,3079.8,3078.7,0.86201263]
[1732071827612,0.55,3080.1,3078.7,0.86201263]
[1732071827946,0.55,3079.6,3078.7,0.8078]
[1732071828147,0.7722,3080.2,3078.7,0.8078]
[1732071828148,0.55,3079.4,3078.7,0.8078]
[1732071831549,0.55,3079.2,3078.2,0.8078]
[1732071831715,0.55,3079.0,3078.2,0.8078]
[1732071831922,0.55,3078.8,3078.2,0.8078]
[1732071833309,0.55,3079.1,3078.2,0.8078]
[1732071833508,0.55,3078.9,3078.2,0.8078]
[1732071833708,0.55,3079.0,3078.2,0.8078]
[1732071834832,0.55,3078.8,3078.2,0.8078]
[1732071835033,0.55,3078.6,3077.8,0.8078]
[1732071835257,0.55,3078.6,3077.8,0.97285178]
[1732071835862,0.55,3078.7,3077.8,0.97285178]
[1732071836014,0.63121638,3078.7,3077.8,0.97285178]
[1732071836420,0.55,3078.7,3077.8,0.97285178]
[1732071836657,0.55,3078.5,3077.8,0.8078]
[1732071836820,0.55,3078.3,3077.8,0.8078]
[1732071837365,0.55,3078.6,3077.8,0.8078]
[1732071837659,0.7722,3078.8,3077.8,0.8078]
[1732071837660,0.55,3078.4,3077.8,0.8078]
[1732071838164,0.55,3078.7,3077.8,0.8078]
[1732071838330,0.0812266,3078.6,3077.8,0.8078]
[1732071838536,0.55,3078.5,3077.8,0.8078]
[1732071838847,0.55,3078.6,3077.8,0.8078]
[1732071839962,0.55,3078.4,3077.7,0.84271779]
[1732071840159,0.63123166,3078.6,3077.7,0.84271779]
[1732071840746,0.55,3078.7,3077.7,0.84271779]
[1732071840957,0.63123164,3078.7,3077.7,0.84271779]
[1732071842267,0.63123164,3078.7,3077.2,3.403]
[1732071842440,0.63123164,3078.7,3077.5,0.762]
[1732071842627,0.7855,3078.6,3077.6,0.24065543]
[1732071842830,0.63121762,3078.5,3077.6,0.24065543]
[1732071843058,0.63121762,3078.5,3077.5,0.762]
[1732071843225,0.55,3078.8,3077.6,0.2951812]
[1732071843429,0.6312239,3078.8,3077.7,0.762]
[1732071843839,0.55,3078.8,3077.9,0.762]
[1732071844094,0.55,3079.1,3077.9,0.762]
[1732071844261,0.55,3078.9,3078.0,0.2411168]
[1732071844577,0.55,3078.9,3077.9,0.762]
[1732071844578,0.55,3078.9,3078.1,0.2411168]
[1732071844766,0.55,3078.9,3077.9,0.762]
[1732071845069,0.55,3078.9,3078.0,0.24111857]
[1732071845371,0.63121635,3078.9,3078.1,0.24111857]
[1732071845573,0.55,3079.1,3078.2,0.24111857]
[1732071845874,0.08121635,3079.2,3078.3,0.762]
[1732071846187,0.08121635,3079.2,3078.4,0.24145257]
[1732071846471,0.86669227,3080.1,3078.6,0.762]
[1732071846645,0.86669227,3080.1,3078.8,0.762]
[1732071846841,0.86669227,3080.1,3078.9,0.24145257]
[1732071847029,0.86669227,3080.1,3079.0,0.24145257]
[1732071847403,0.86669227,3080.1,3079.1,0.24145257]
[1732071847643,0.86669227,3080.1,3079.2,0.24145257]
[1732071847906,0.86669227,3080.1,3079.3,0.24145257]
[1732071848082,0.86669227,3080.1,3078.8,0.762]
[1732071848083,0.96133123,3080.0,3078.8,0.762]
[1732071848165,0.55,3079.8,3078.9,0.241823]
[1732071848354,0.55,3079.6,3079.0,0.24192249]
[1732071848529,0.55,3079.6,3079.1,0.24192186]
[1732071848780,0.55,3079.9,3078.8,0.762]
[1732071848928,0.7855,3080.1,3078.8,0.762]
[1732071848929,0.08119842,3079.8,3078.8,0.762]
[1732071849259,0.7855,3080.1,3078.8,0.762]
[1732071849260,0.08119155,3080.0,3078.8,0.762]
[1732071849678,0.7855,3080.4,3078.8,0.762]
[1732071849987,0.7855,3080.4,3078.3,0.0642204]
[1732071849988,0.08118498,3080.3,3079.0,0.8273]
[1732071851292,0.55,3080.1,3079.2,0.8273]
[1732071851638,0.7855,3080.4,3079.2,0.8273]
[1732071851639,0.55,3079.9,3079.2,0.8273]
[1732071851854,0.55,3079.9,3078.1,0.05421557]
[1732071851855,1.3108,3079.7,3078.9,0.8273]
[1732071852081,0.55,3079.5,3078.2,0.8273]
[1732071852310,0.55,3079.3,3078.2,0.8273]
[1732071852568,0.55,3079.1,3078.2,0.8273]
[1732071852859,0.55,3079.1,3078.3,0.8273]
[1732071853790,0.55,3079.1,3078.4,0.05427644]
[1732071853992,0.55,3079.1,3078.3,0.8273]
[1732071854694,0.55,3078.9,3078.3,0.8273]
[1732071854899,0.55,3079.1,3078.3,0.8273]
[1732071855720,0.55,3078.9,3078.3,0.8273]
[1732071855870,0.55,3078.7,3078.3,0.8273]
[1732071856068,0.55,3078.5,3078.3,0.8273]
[1732071858793,0.08121098,3079.4,3078.3,0.8273]
[1732071859107,0.08121098,3079.6,3078.3,0.8273]
[1732071859772,0.0811957,3080.1,3078.4,0.88154302]
[1732071861062,0.08118623,3080.1,3078.4,0.88154302]
[1732071861230,0.84198623,3080.6,3078.4,0.88154302]
[1732071861393,4.08812623,3080.6,3078.4,0.88154302]
[1732071861886,0.84198623,3080.6,3078.4,0.88154302]
[1732071862113,0.40880062,3080.5,3078.4,0.88154302]
[1732071862285,0.08118466,3080.4,3078.4,0.88154302]
[1732071862615,0.55,3080.3,3078.4,0.88154302]
[1732071862781,0.40880062,3080.5,3078.5,0.8273]
[1732071862782,0.55,3080.1,3078.5,0.8273]
[1732071862973,0.55,3079.9,3078.7,0.8273]
[1732071863266,0.40880062,3080.5,3077.9,0.01]
[1732071863267,0.08118941,3079.8,3078.8,0.8273]
[1732071863513,3.0,3080.0,3078.8,0.8273]
[1732071863702,0.38119478,3079.9,3078.8,0.8273]
[1732071864013,0.08119478,3079.9,3078.8,0.8273]
[1732071864509,0.55,3079.8,3078.8,0.8273]
[1732071864733,0.55,3079.6,3078.8,0.8273]
[1732071865582,0.08119574,3079.5,3078.8,0.8273]
[1732071865818,0.55,3079.4,3078.8,0.8273]
[1732071866019,0.08120304,3079.3,3078.8,0.8273]
[1732071866272,0.55,3079.2,3078.8,0.8273]
[1732071866609,0.55,3079.0,3077.8,0.8199]
[1732071866923,0.5369,3078.8,3077.8,0.8199]
[1732071867080,0.08122701,3078.7,3077.8,0.8199]
[1732071867357,0.8241,3078.6,3077.8,0.8199]
[1732071867504,3.47176273,3078.5,3077.8,0.8199]
[1732071867721,3.47176273,3078.5,3076.9,0.8199]
[1732071868026,0.47176273,3078.5,3076.9,0.8199]
[1732071868406,3.47176273,3078.5,3077.0,0.05434229]
[1732071868550,0.08123003,3078.5,3076.9,0.91585775]
[1732071868755,0.55,3078.4,3076.9,0.91585775]
[1732071868934,0.55,3078.2,3076.9,0.91585775]
[1732071869251,0.55,3078.0,3076.9,0.8199]
[1732071870108,0.55,3078.0,3077.0,0.05434236]
[1732071870301,0.55,3078.0,3077.1,0.8199]
[1732071871555,0.55,3077.8,3077.1,0.8199]
[1732071871753,0.55,3078.3,3077.1,0.8199]
[1732071871903,0.08123738,3078.2,3077.1,0.8199]
[1732071872112,0.55,3078.1,3077.1,0.8199]
[1732071872818,0.08123636,3078.1,3077.1,0.8199]
[1732071873022,0.55,3078.0,3077.1,0.8199]
[1732071873466,0.8241,3077.9,3077.1,0.8199]
[1732071873679,0.55,3077.8,3077.1,0.8199]
[1732071874462,0.8241,3077.9,3076.6,0.8199]
[1732071874463,0.55,3077.6,3076.6,0.8199]
[1732071874772,0.55,3077.4,3076.6,0.8199]
[1732071874912,0.08124656,3077.3,3076.6,0.8199]
[1732071875252,0.55,3077.2,3076.6,0.8199]
[1732071875449,0.08124694,3077.1,3076.6,0.8199]
[1732071875652,0.55,3077.2,3076.6,0.8199]
[1732071876356,0.55,3077.5,3076.6,0.8199]
[1732071876558,0.55,3077.2,3076.6,0.8199]
[1732071876722,0.55,3077.2,3076.1,0.8199]
[1732071877154,0.55,3077.0,3076.1,0.8199]
[1732071878318,0.55,3077.1,3076.1,0.8199]
[1732071879326,0.08126355,3077.0,3076.1,0.8199]
[1732071879530,0.08125623,3077.2,3076.1,0.8199]
[1732071879728,0.8241,3077.3,3076.1,0.8199]
[1732071879991,0.08126277,3077.2,3076.1,0.8199]
[1732071880569,0.55,3077.1,3076.1,0.8199]
[1732071880752,0.55,3077.1,3075.9,0.1402674]
[1732071880753,0.55,3076.9,3075.9,0.1402674]
[1732071880943,0.55,3076.7,3075.9,0.1402674]
[1732071881174,0.55,3076.5,3075.9,0.1402674]
[1732071881447,0.44553639,3076.8,3075.9,0.1402674]
[1732071881448,0.55,3076.3,3075.9,0.1402674]
[1732071881649,0.08128535,3076.2,3075.9,0.1402674]
[1732071881845,0.55,3076.1,3075.9,0.1402674]
[1732071882371,0.55,3076.2,3075.9,0.1402674]
[1732071882546,0.55,3076.0,3075.9,0.1402674]
[1732071883330,0.55,3076.1,3075.9,0.1402674]
[1732071885320,0.87027926,3077.1,3076.0,0.7936]
[1732071886477,0.08127926,3077.1,3076.0,0.7936]
[1732071886632,0.08126444,3077.0,3076.0,0.7936]
[1732071887538,0.55,3077.2,3076.0,0.7936]
[1732071887731,0.55,3077.0,3076.0,0.7936]
[1732071887931,0.08126445,3076.9,3076.0,0.7936]
[1732071888166,0.55,3076.8,3076.0,0.7936]
[1732071888669,0.55,3077.1,3076.0,0.7936]
[1732071888888,0.55,3076.9,3076.0,0.7936]
[1732071889373,0.55,3076.7,3076.0,0.7936]
[1732071891630,0.36536188,3078.2,3075.9,0.1402674]
[1732071891631,0.789,3077.7,3076.2,0.7936]
[1732071891633,0.0812555,3077.6,3076.2,0.7936]
[1732071892543,0.55,3077.5,3076.2,0.7936]
[1732071892859,0.55,3077.3,3076.2,0.7936]
[1732071893376,0.789,3077.7,3076.2,0.7936]
[1732071893377,0.55,3077.1,3076.2,0.7936]
[1732071893586,0.55,3076.9,3076.2,0.7936]
[1732071894190,0.55,3076.7,3076.2,0.7936]
[1732071894561,0.01,3077.6,3076.2,0.7936]
[1732071894562,0.08126993,3077.0,3076.2,0.7936]
[1732071894780,0.08126993,3077.3,3076.2,0.7936]
[1732071895308,0.08126993,3077.3,3075.9,0.23619663]
[1732071895309,0.8267,3077.2,3075.9,0.1402674]
[1732071895442,3.0,3077.0,3075.9,0.1402674]
[1732071895644,0.71438863,3076.9,3075.9,0.1402674]
[1732071895885,0.55,3076.8,3075.9,0.1402674]
[1732071896138,0.55,3076.5,3075.9,0.1402674]
[1732071896375,0.63128281,3076.5,3075.9,0.1402674]
[1732071899383,0.55,3076.5,3076.0,0.819]
[1732071900511,0.55,3076.8,3076.0,0.819]
[1732071900721,0.08126955,3076.9,3076.0,0.819]
[1732071900890,0.01,3077.8,3076.0,0.819]
[1732071900891,0.8267,3077.3,3076.0,0.819]
[1732071901211,0.08126955,3077.2,3076.0,0.819]
[1732071903616,0.55,3077.4,3076.0,0.819]
[1732071903919,0.55,3077.2,3076.0,0.87340559]
[1732071904088,0.55,3077.4,3076.0,0.87340559]
[1732071904441,0.55,3077.2,3076.0,0.819]
[1732071904922,0.55,3076.9,3076.0,0.819]
[1732071905088,0.55,3076.7,3076.0,0.819]
[1732071905436,0.55,3076.5,3076.0,0.819]
[1732071905729,0.55,3076.3,3075.9,0.1402674]
[1732071906063,0.01,3076.9,3075.9,0.1402674]
[1732071906064,0.55,3076.1,3075.9,0.1402674]
[1732071906925,0.63128514,3076.0,3075.9,0.1402674]
[1732071907124,0.55,3076.0,3075.9,0.1402674]
[1732071907309,0.55,3076.1,3075.9,0.1402674]
[1732071909663,0.63128959,3076.0,3075.9,0.1402674]
[1732071910154,0.55,3076.1,3075.9,0.1402674]
[1732071910339,0.55,3076.3,3075.9,0.1402674]
[1732071911213,0.55,3076.1,3075.9,0.1402674]
[1732071912535,0.63129033,3076.0,3075.9,0.1402674]
[1732071913105,0.55,3076.2,3075.9,0.1402674]
[1732071913334,0.55,3076.0,3075.9,0.1402674]
[1732071913518,0.287703,3076.0,3075.4,0.0932994]
[1732071913806,0.08129046,3076.3,3075.4,0.0932994]
[1732071914055,0.08129393,3076.5,3075.5,0.24219427]
[1732071914180,0.08129393,3076.5,3075.6,0.24219427]
[1732071914315,0.08129393,3076.5,3075.7,0.24219427]
[1732071914652,0.08129393,3076.5,3075.4,0.0932994]
[1732071914886,0.08129393,3076.5,3075.5,0.2421799]
[1732071915065,0.08129393,3076.5,3075.6,0.2421799]
[1732071915226,0.08129393,3076.5,3075.7,0.2421799]
[1732071915428,0.08129393,3076.5,3075.4,0.0932994]
[1732071915655,0.08129393,3076.5,3075.5,0.24215717]
[1732071915656,0.55,3076.4,3075.5,0.24215717]
[1732071915912,0.63128241,3076.4,3075.6,0.24215717]
[1732071916040,0.63128241,3076.4,3075.4,0.0932994]
[1732071917011,0.55,3076.3,3075.4,0.0932994]
[1732071917133,0.55,3076.1,3075.4,0.0932994]
[1732071918069,0.08128537,3076.0,3075.4,0.0932994]
[1732071918371,3.25025,3076.7,3074.9,0.05447211]
[1732071918372,1.3095,3075.9,3074.9,0.05447211]
[1732071918583,0.55,3075.7,3074.6,0.8207]
[1732071918791,0.55,3075.5,3074.6,0.8207]
[1732071919129,0.55,3075.3,3074.6,0.8207]
[1732071919278,0.55,3075.1,3074.6,0.8207]
[1732071921649,0.55,3074.9,3074.6,0.8207]
[1732071921849,0.55,3075.1,3074.6,0.8207]
[1732071922548,0.08131442,3075.0,3073.8,0.8207]
[1732071922778,0.55,3074.9,3073.8,0.8207]
[1732071922932,0.55,3074.7,3073.8,0.8207]
[1732071923133,0.55,3074.5,3073.8,0.8207]
[1732071923675,0.55,3074.6,3073.8,0.8207]
[1732071924668,0.08132054,3075.0,3073.8,0.8207]
[1732071924892,0.55,3075.1,3074.0,0.757]
[1732071925592,0.08131237,3075.0,3074.0,0.757]
[1732071925746,0.55,3074.9,3074.0,0.757]
[1732071926089,0.08131687,3074.8,3074.0,0.757]
[1732071926250,0.55,3075.1,3074.0,0.757]
[1732071926450,0.55,3074.9,3074.0,0.757]
[1732071926687,0.08131688,3074.8,3074.0,0.757]
[1732071926987,0.55,3075.1,3074.0,0.757]
[1732071927286,0.55,3074.9,3074.0,0.757]
[1732071928201,0.55,3074.9,3073.7,0.7838]
[1732071928966,0.55,3074.9,3073.8,0.05454344]
[1732071929165,0.8152,3075.1,3073.9,0.7838]
[1732071929506,0.08132088,3075.6,3073.3,0.11516191]
[1732071929507,0.55,3075.3,3074.1,0.7838]
[1732071929667,0.63131268,3075.3,3074.1,0.7838]
[1732071933421,0.8152,3075.0,3073.2,0.7838]
[1732071933649,0.63132839,3074.9,3073.3,0.93377173]
[1732071933773,0.63132839,3074.9,3073.3,0.83836146]
[1732071934880,0.55,3074.9,3073.3,0.83836146]
[1732071936417,0.55,3074.9,3073.3,0.84836146]
[1732071937093,0.8087,3075.7,3073.7,0.7742]
[1732071937289,0.8087,3075.7,3073.9,0.7742]
[1732071937290,0.08130446,3075.6,3073.9,0.7742]
[1732071937488,0.08130446,3075.6,3074.0,0.82870402]
[1732071937895,0.8087,3075.5,3073.7,0.05450402]
[1732071938083,0.8087,3075.3,3073.7,0.7742]
[1732071938280,0.55,3074.9,3073.7,0.7742]
[1732071938509,0.63133289,3074.9,3073.7,0.7742]
[1732071938902,0.55,3074.7,3073.7,0.7742]
[1732071939117,0.63133438,3074.7,3073.7,0.7742]
[1732071944425,0.08134007,3074.6,3073.7,0.7742]
[1732071945314,0.55,3074.7,3073.7,0.7742]
[1732071945315,0.08132992,3074.7,3073.7,0.7742]
[1732071946415,0.7852,3075.3,3073.7,0.7742]
[1732071946416,0.08132147,3075.2,3073.7,0.7742]
[1732071947345,0.08132147,3075.2,3073.7,0.77677]
[1732071947555,0.55,3075.1,3073.7,0.77677]
[1732071947751,0.08132145,3075.0,3073.7,0.77677]
[1732071948634,0.55,3074.9,3073.7,0.77677]
[1732071948828,0.08132752,3074.8,3073.7,0.77677]
[1732071949087,0.7852,3075.3,3073.8,0.05454948]
[1732071949364,0.7852,3075.8,3073.9,0.8232]
[1732071949561,0.7852,3075.8,3074.0,0.8232]
[1732071949562,0.45534179,3075.5,3074.0,0.8232]
[1732071949769,0.7852,3075.3,3074.0,0.8232]
[1732071950142,0.08131456,3075.2,3074.0,0.8232]
[1732071954375,0.7852,3075.0,3073.7,0.82577]
[1732071954585,0.63132983,3074.9,3073.7,0.82577]
[1732071957175,0.55,3074.7,3073.7,0.82577]
[1732071957422,0.08133394,3074.6,3073.7,0.82577]
[1732071958179,0.7852,3074.4,3073.7,0.82577]
[1732071958382,0.86653889,3074.4,3073.7,0.82577]
[1732071960993,0.86653889,3074.4,3073.7,0.00257]
[1732071962580,0.38665389,3074.3,3073.7,0.00257]
[1732071962784,0.08134699,3074.2,3073.7,0.00257]
[1732071963146,3.0,3075.1,3073.7,0.00257]
[1732071963147,0.7852,3074.9,3073.8,0.8232]
[1732071963379,0.08133517,3074.8,3073.8,0.8232]
[1732071964228,0.86653304,3074.9,3073.8,0.8232]
[1732071964412,3.97313176,3076.2,3073.9,0.8232]
[1732071964413,0.08132753,3075.4,3073.9,0.8232]
[1732071965092,0.08132753,3075.4,3074.0,0.0545342]
[1732071965243,0.08132753,3075.4,3074.1,0.8232]
[1732071966152,0.08130909,3075.4,3074.3,0.8232]
[1732071966347,0.08130668,3075.6,3074.3,0.8232]
[1732071967492,0.38943735,3075.6,3074.3,0.8232]
[1732071968090,0.08130668,3075.6,3074.3,0.8232]
[1732071968298,0.08131135,3075.5,3074.3,0.8232]
[1732071968608,0.7852,3076.4,3074.5,0.8232]
[1732071968816,0.08129004,3076.3,3074.6,0.87766943]
[1732071969772,0.08128767,3076.6,3074.6,0.87766943]
[1732071970128,0.08128767,3076.6,3074.6,0.88766943]
[1732071970334,0.08128023,3076.9,3074.9,0.7794]
[1732071970618,0.08128023,3076.9,3074.8,0.01]
[1732071970619,0.08128023,3076.9,3075.1,0.7794]
[1732071970812,0.08128023,3076.9,3075.2,0.83383082]
[1732071971018,0.08128023,3076.9,3075.2,0.7794]
[1732071971803,3.0,3076.7,3075.2,0.7794]
[1732071972107,0.38128741,3076.6,3075.2,0.7794]
[1732071972269,0.08128741,3076.6,3075.2,0.7794]
[1732071972463,0.08128741,3076.6,3075.3,0.05446314]
[1732071972669,0.08127424,3077.2,3075.4,0.7794]
[1732071973414,0.08127424,3077.2,3075.0,0.16073389]
[1732071973415,0.08127424,3077.2,3075.5,0.7794]
[1732071973709,3.0,3077.1,3075.5,0.7794]
[1732071973891,0.08127844,3077.0,3075.5,0.7794]
[1732071974420,0.08127844,3077.0,3075.6,0.7794]
[1732071974902,0.08127364,3076.9,3075.6,0.7794]
[1732071975866,0.08127368,3077.2,3075.6,0.7794]
[1732071976073,3.08127368,3077.2,3075.6,0.7794]
[1732071976272,6.33107368,3077.2,3075.6,0.7794]
[1732071976478,0.55,3077.1,3075.6,0.7794]
[1732071976770,3.8288,3076.8,3075.6,0.7794]
[1732071976967,0.51916368,3076.7,3075.6,0.7794]
[1732071977220,0.08128368,3076.7,3075.6,0.7794]
[1732071977731,3.08128368,3076.7,3075.6,0.7794]
[1732071978110,0.8288,3076.3,3075.6,0.7794]
[1732071978113,0.8288,3076.3,3074.4,0.15063321]
[1732071978114,0.55,3076.1,3075.2,0.7794]
[1732071978226,0.0812998,3076.0,3075.2,0.7794]
[1732071978930,3.0,3075.8,3075.2,0.7794]
[1732071979083,0.70641533,3075.7,3075.2,0.7794]
[1732071979276,0.08130033,3075.7,3075.2,0.7794]
[1732071979923,0.08130033,3075.7,3074.1,0.89829447]
[1732071979924,3.0,3075.3,3074.2,0.7794]
[1732071980125,1.53528735,3075.2,3074.2,0.7794]
[1732071980421,0.91011635,3075.2,3074.2,0.7794]
[1732071980985,3.91011635,3075.2,3074.2,0.7794]
[1732071981229,0.91011635,3075.2,3074.2,0.7794]
[1732071982745,0.08131635,3075.2,3074.2,0.7794]
[1732071982901,0.08132233,3075.1,3074.2,0.7794]
[1732071983422,0.08132234,3075.3,3074.2,0.7794]
[1732071984315,0.08131503,3075.2,3074.2,0.7794]
[1732071984483,4.07999,3075.8,3074.2,0.7794]
[1732071984484,0.08131503,3075.6,3074.2,0.7794]
[1732071984684,3.0,3075.5,3074.2,0.7794]
[1732071984938,3.33272503,3075.6,3074.2,0.7794]
[1732071984939,0.08130877,3075.4,3074.2,0.7794]
[1732071985126,3.0,3075.3,3074.2,0.7794]
[1732071985294,0.8288,3075.8,3074.2,0.7794]
[1732071985295,0.71461194,3075.2,3074.2,0.7794]
[1732071985485,0.08132006,3075.2,3074.2,0.7794]
[1732071985827,0.08131453,3075.6,3074.2,0.7794]
[1732071986585,3.08130399,3076.0,3074.2,0.7794]
[1732071986786,0.7084284,3075.9,3074.2,0.7794]
[1732071987007,0.7084284,3075.9,3073.8,0.01]
[1732071987008,0.08130294,3075.8,3074.3,0.05450038]
[1732071987217,0.08130294,3075.8,3074.4,0.7668]
[1732071987639,0.08130163,3076.3,3074.6,0.7668]
[1732071987920,0.08129452,3076.4,3074.8,0.7668]
[1732071988135,0.08129452,3076.4,3075.0,0.7668]
[1732071988495,0.7521,3076.8,3075.0,0.7668]
[1732071988496,0.08129436,3076.3,3075.0,0.7668]
[1732071989523,6.25034,3076.6,3075.0,0.7668]
[1732071989744,3.0,3076.2,3075.0,0.7668]
[1732071990021,0.08128875,3076.1,3075.0,0.7668]
[1732071990210,0.09128876,3076.7,3075.0,0.7668]
[1732071990387,0.38433888,3076.6,3075.0,0.7668]
[1732071990585,0.08128876,3076.5,3075.0,0.7668]
[1732071991419,0.08128876,3076.5,3074.6,0.7668]
[1732071991618,0.08128876,3076.5,3074.7,0.82126641]
[1732071991792,0.08128879,3076.4,3074.7,0.82126641]